Cogmind - Beta 14 @@@ ROGUE MODE // 2024.12.09 @ 17:35:27 Player: Elly Result: Destroyed by H-55 Commando with Gauss Rifle Performance ------------- Evolutions (2) 1000 Regions Visited (7) 1400 Robots Destroyed (28) 140 Value Destroyed (659) 659 Prototype IDs (0) 0 Alien Tech Used (0) 0 Bonus (8) 8 TOTAL SCORE: 3207 Bonus ------- High Alert Combat Kills 8 Cogmind --------- Core Integrity 0/550 Matter 228/300 Energy 98/100 System Corruption 0% Temperature Cool (0) Movement Core (50) Location -8/Storage Parts ------- > --- POWER (2) -------- (None) > --- PROPULSION (3) --- (None) > --- UTILITY (4) ------ Heat Sink > --- WEAPON (2) ------- (None) > --- INVENTORY (5) ---- (None) Peak State ------------ > --- POWER ------------ Ion Engine > --- PROPULSION ------- Aluminum Leg Aluminum Leg Improved Aluminum Leg > --- UTILITY ---------- Small Storage Unit Visual Processing Unit Improved Targeting Computer > --- WEAPON ----------- Beam Rifle Heavy Assault Rifle > --- INVENTORY -------- Light Treads Wheel Compact Wheel Light Assault Rifle [Rating: 14] Favorites ----------- Power Light Ion Engine Engine Light Ion Engine Propulsion Aluminum Leg Treads Light Treads Leg Aluminum Leg Wheel Wheel Utility Small Storage Unit Device Heat Sink Storage Small Storage Unit Processor Visual Processing Unit Protection Light Armor Plating Weapon Light Assault Rifle Energy Gun Small Laser Ballistic Gun Light Assault Rifle Ballistic Cannon Assault Cannon Launcher Mini Grenade Launcher Build | -11 -10 -9 -9 -9 -8 -8 -8 ------- Run | Yrd Mat Mat Min Exi Min Mat Sto Slots Evolved 4 | . . 2 . . . 2 . Power 1 | . . . . . . 1 . Propulsion 1 | . . 1 . . . . . Utility 2 | . . 1 . . . 1 . Weapon . | . . . . . . . . Parts Attached 35 | 6 2 9 4 . 2 . 12 Power 4 | 1 . 1 1 . . . 1 Engine 4 | 1 . 1 1 . . . 1 Core . | . . . . . . . . Reactor . | . . . . . . . . Propulsion 9 | 2 . 1 . . 2 . 4 Treads 1 | . . . . . . . 1 Leg 6 | 2 . 1 . . 2 . 1 Wheel 2 | . . . . . . . 2 Hover . | . . . . . . . . Flight . | . . . . . . . . Utility 11 | 1 2 4 . . . . 4 Device 4 | . . . . . . . 4 Storage 4 | 1 1 2 . . . . . Processor 2 | . 1 1 . . . . . Hackware . | . . . . . . . . Protection 1 | . . 1 . . . . . Artifact . | . . . . . . . . Weapon 11 | 2 . 3 3 . . . 3 Energy Gun 3 | 1 . 1 1 . . . . Energy Cannon . | . . . . . . . . Ballistic Gun 5 | 1 . 1 2 . . . 1 Ballistic Cannon 2 | . . . . . . . 2 Launcher 1 | . . 1 . . . . . Special Weapon . | . . . . . . . . Impact Weapon . | . . . . . . . . Slashing Weapon . | . . . . . . . . Piercing Weapon . | . . . . . . . . Special Melee Weapon . | . . . . . . . . Unidentified Prototypes . | . . . . . . . . Parts Lost 17 | . . 1 4 . . . 12 Power 2 | . . . 1 . . . 1 Propulsion 6 | . . 1 1 . . . 4 Utility 4 | . . . . . . . 4 Weapon 5 | . . . 2 . . . 3 Highest Loss Streak 5 | . . 1 3 . . . 5 To Critical Strikes . | . . . . . . . . Average Slot Usage (%) 74 | . 95 85 75 77 90 81 37 Engine 7 | . 14 8 4 11 11 9 3 Leg 18 | . 28 26 16 11 24 27 8 Storage 10 | . 14 10 11 11 11 9 6 Processor 16 | . 10 16 22 22 22 18 5 Energy Gun 7 | . 14 5 9 11 11 9 2 Ballistic Gun 10 | . 14 11 11 11 11 9 4 Launcher 1 | . . 5 . . . . . Peak Build Rating 14 | 6 8 14 13 10 14 14 14 Average Rating 9 | 4 7 11 10 10 12 14 5 On Entrance 9 | . 6 8 13 10 10 14 14 Naked Turns 18 | . . . . . . . 18 Heaviest Build 82 | 12 27 82 10 10 10 10 10 Greatest Support 38 | 20 20 33 23 13 38 38 38 Greatest Overweight (x) 4 | . 1 4 . . . . 3 Average Overweight (x) . | . . . . . . . . Largest Inventory Capacity 25 | 8 15 25 8 8 8 8 8 Average Capacity 8 | 6 9 10 8 8 8 8 7 Most Carried 6 | 6 6 6 5 5 6 3 4 Average Carried 3 | 3 5 4 4 5 3 3 1 Final Capacity 15 | 8 15 8 8 8 8 8 5 Final Carried 5 | 5 5 4 5 5 3 3 . Class Distribution -------------------- 61% | Mutant 38% | Scavenger-Mutant Dominant Class ---------------- Mutant | -10/Materials Mutant | -9/Materials Mutant | -9/Mines Scavenger-Mutant | -9/Exiles Scavenger-Mutant | -8/Mines Scavenger-Mutant | -8/Materials Mutant | -8/Storage Resources | -11 -10 -9 -9 -9 -8 -8 -8 ----------- Run | Yrd Mat Mat Min Exi Min Mat Sto Matter Collected 742 | 232 42 122 212 . 14 . 120 Remotely . | . . . . . . . . Salvage Created 787 | . 36 412 204 . 54 . 81 Parts 63 | . 6 37 10 . 3 . 7 Haulers Intercepted . | . . . . . . . . Recyclers Shooed 1 | . . 1 . . . . . Parts Field Recycled . | . . . . . . . . Retrieved Matter . | . . . . . . . . Parts Self-Destructed . | . . . . . . . . Prevented . | . . . . . . . . Kills | -11 -10 -9 -9 -9 -8 -8 -8 ------- Run | Yrd Mat Mat Min Exi Min Mat Sto Combat Hostiles Destroyed 19 | . . 10 6 . 1 . 2 Guns 11 | . . 4 6 . 1 . . Cannons 2 | . . . . . . . 2 AOE 6 | . . 6 . . . . . Classes Destroyed 8 | . 2 5 . . 1 . . Worker 2 | . . 1 1 . . . . Recycler 2 | . . 2 . . . . . Operator 3 | . 1 2 . . . . . Watcher 2 | . 1 1 . . . . . Swarmer 8 | . . 5 3 . . . . Grunt 6 | . . 2 3 . . . 1 Sentry 4 | . . 3 . . . . 1 Hunter 1 | . . . . . 1 . . Best Kill Streak 6 | . 2 6 4 . 1 . 1 Combat Bots Only 5 | . . 5 3 . 1 . 1 Max Kills in Single Turn 3 | . 1 3 1 . 1 . 1 Gunslinging . | . . . . . . . . Exploded 3 | . . 3 . . . . . Melee . | . . . . . . . . Uniques/NPCs Destroyed . | . . . . . . . . Combat | -11 -10 -9 -9 -9 -8 -8 -8 -------- Run | Yrd Mat Mat Min Exi Min Mat Sto Hostile Shots Fired 258 | . . 55 68 . 6 . 129 Missed 77 | . . 14 21 . 1 . 41 Damage Taken 2335 | . . 516 487 . 90 . 1242 Core 818 | . . 95 157 . . . 566 Absorbed by Shields . | . . . . . . . . Core Remaining (%) 79 | 100 100 . . . 37 . . Volleys Fired 114 | . 4 46 26 . 4 . 34 Largest 2 | . 2 2 2 . 2 . 2 Hottest 79 | . 60 79 79 . 60 . 60 Shots Fired 184 | . 8 82 49 . 8 . 37 Gun 161 | . 8 75 49 . 8 . 21 Cannon 16 | . . . . . . . 16 Launcher 7 | . . 7 . . . . . Special . | . . . . . . . . Kinetic 116 | . 4 46 28 . 4 . 34 Thermal 61 | . 4 29 21 . 4 . 3 Explosive 7 | . . 7 . . . . . Electromagnetic . | . . . . . . . . Robot Hit Streak 9 | . 2 7 8 . 3 . 9 Robot Miss Streak 4 | . 2 4 2 . 2 . 3 Penetration Max . | . . . . . . . . Secondary Targets 3 | . . 1 2 . . . . Max Gunslinging Chain 1 | . . 1 1 . . . . Shots Hit Robots 99 | . 4 39 26 . 5 . 25 Core Hits 54 | . 4 26 12 . 3 . 9 Critical Kills . | . . . . . . . . Critical Parts Destroyed 1 | . . 1 . . . . . Critical Strikes 1 | . . 1 . . . . . Destroy 1 | . . 1 . . . . . Melee Attacks . | . . . . . . . . Impact . | . . . . . . . . Slashing . | . . . . . . . . Piercing . | . . . . . . . . Sneak Attacks . | . . . . . . . . Combat Hostiles . | . . . . . . . . Follow-up Attacks . | . . . . . . . . Damage Inflicted 1741 | . 45 920 318 . 44 . 414 Guns 1011 | . 45 460 316 . 44 . 146 Cannons 260 | . . . . . . . 260 Explosions 457 | . . 457 . . . . . Melee . | . . . . . . . . Ramming 13 | . . 3 2 . . . 8 Kinetic 906 | . 10 274 216 . 10 . 396 Thermal 365 | . 35 186 100 . 34 . 10 Explosive 457 | . . 457 . . . . . Electromagnetic . | . . . . . . . . Impact . | . . . . . . . . Slashing . | . . . . . . . . Piercing . | . . . . . . . . Highest Corruption . | . . . . . . . . Average Corruption . | . . . . . . . . Corruption Purged . | . . . . . . . . Corruption Blocked . | . . . . . . . . Overload Shots . | . . . . . . . . Overflow Damage 37 | . . 37 . . . . . Projectiles . | . . . . . . . . Explosions 37 | . . 37 . . . . . Melee . | . . . . . . . . Knockbacks 3 | . . . . . . . 3 Impact . | . . . . . . . . Kinetic 3 | . . . . . . . 3 Secondary . | . . . . . . . . Self-Inflicted Damage 51 | . . 47 . . . . 4 Shots 2 | . . 2 . . . . . Rammed 2 | . . . . . . . 2 Targets Rammed 4 | . . 1 1 . . . 2 Kicked 2 | . . 1 1 . . . . Crushed . | . . . . . . . . Highest Temperature 210 | . 20 210 154 . 14 . 18 Average Temperature 44 | . 13 51 47 . 10 . 7 Received Heat Transfer 810 | . . 186 165 . . . 459 Siege Activations . | . . . . . . . . Robots Corrupted . | . . . . . . . . Combat Hostiles . | . . . . . . . . Parts Fried . | . . . . . . . . Impact Corruptions . | . . . . . . . . Robots Melted . | . . . . . . . . Combat Hostiles . | . . . . . . . . Parts Melted . | . . . . . . . . Heat Transferred 904 | . 75 481 248 . 75 . 25 Parts Sabotaged . | . . . . . . . . Parts Stolen . | . . . . . . . . Parts Stripped . | . . . . . . . . Power Chain Reactions . | . . . . . . . . Alert | -11 -10 -9 -9 -9 -8 -8 -8 ------- Run | Yrd Mat Mat Min Exi Min Mat Sto Peak Influence 442 | . 29 442 203 . 45 17 56 Initial 108 | . . 11 108 . . 17 7 Average 130 | . 22 255 168 . 38 17 13 Maximum Alert Level 2 | . . 2 1 . . . . Low Security (%) 64 | 100 100 19 60 . 100 100 100 Level 1 31 | . . 69 39 . . . . Level 2 3 | . . 11 . . . . . Level 3 . | . . . . . . . . Level 4 . | . . . . . . . . Level 5 . | . . . . . . . . High Security . | . . . . . . . . Max Security . | . . . . . . . . Squads Dispatched 2 | . . 1 . . . . 1 Investigation . | . . . . . . . . Extermination . | . . . . . . . . Reinforcement 2 | . . 1 . . . . 1 Assault . | . . . . . . . . Garrison . | . . . . . . . . Intercept . | . . . . . . . . Searches Triggered . | . . . . . . . . Construction Impeded . | . . . . . . . . Haulers Reinforced . | . . . . . . . . Active Scanning Responses . | . . . . . . . . Cargo Convoy Interrupts . | . . . . . . . . Stealth | -11 -10 -9 -9 -9 -8 -8 -8 --------- Run | Yrd Mat Mat Min Exi Min Mat Sto Distress Signals 3 | . . 3 . . . . . Communications Jammed . | . . . . . . . . Distress Signals . | . . . . . . . . Times Spotted 43 | . 2 24 7 . 1 . 9 Peak Tracking Total 6 | . 1 6 4 . 1 . 4 Tactical Retreats 3 | . . 1 . . . . 2 Traps | -11 -10 -9 -9 -9 -8 -8 -8 ------- Run | Yrd Mat Mat Min Exi Min Mat Sto Traps Triggered 3 | . . . . . . . 3 Indirectly . | . . . . . . . . Trap Hack Attempts . | . . . . . . . . Triggered . | . . . . . . . . Disarmed . | . . . . . . . . Reprogrammed . | . . . . . . . . Reused . | . . . . . . . . Traps Extracted . | . . . . . . . . Installed . | . . . . . . . . Triggered . | . . . . . . . . Machines | -11 -10 -9 -9 -9 -8 -8 -8 ---------- Run | Yrd Mat Mat Min Exi Min Mat Sto Machines Disabled 2 | . . 2 . . . . . Max in Single Turn 1 | . . 1 . . . . . Machines Repaired . | . . . . . . . . Machines Dismantled . | . . . . . . . . Machines Sabotaged . | . . . . . . . . Overloaded Fab Kills . | . . . . . . . . Hacking | -11 -10 -9 -9 -9 -8 -8 -8 --------- Run | Yrd Mat Mat Min Exi Min Mat Sto Machines Accessed 2 | . 1 . . 1 . . . Terminals 1 | . 1 . . . . . . Fabricators . | . . . . . . . . Repair Stations . | . . . . . . . . Recycling Units . | . . . . . . . . Scanalyzers . | . . . . . . . . Garrison Access . | . . . . . . . . Total Hacks 25 | . 2 . . 23 . . . Successful 25 | . 2 . . 23 . . . Failed . | . . . . . . . . Catastrophic . | . . . . . . . . Database Lockouts . | . . . . . . . . Manual . | . . . . . . . . Terminals 2 | . 2 . . . . . . Fabricators . | . . . . . . . . Repair Stations . | . . . . . . . . Recycling Units . | . . . . . . . . Scanalyzers . | . . . . . . . . Garrison Access . | . . . . . . . . Terminal Hacks 25 | . 2 . . 23 . . . Record 25 | . 2 . . 23 . . . Fabricator Hacks . | . . . . . . . . Repair Station Hacks . | . . . . . . . . Recycling Unit Hacks . | . . . . . . . . Scanalyzer . | . . . . . . . . Garrison Access Hacks . | . . . . . . . . Unauthorized Hacks . | . . . . . . . . Terminals . | . . . . . . . . Fabricators . | . . . . . . . . Repair Stations . | . . . . . . . . Recycling Units . | . . . . . . . . Scanalyzers . | . . . . . . . . Garrison Access . | . . . . . . . . Data Cores Recovered 2 | . 1 1 . . . . . Used . | . . . . . . . . Hacking Detections 1 | . 1 . . . . . . Full Trace Events . | . . . . . . . . Feedback Events . | . . . . . . . . Feedback Blocked . | . . . . . . . . Robot Schematics Acquired . | . . . . . . . . Robots Built . | . . . . . . . . Authchips . | . . . . . . . . Time . | . . . . . . . . Total Robot Build Rating . | . . . . . . . . Part Schematics Acquired . | . . . . . . . . Parts Built . | . . . . . . . . Authchips . | . . . . . . . . Time . | . . . . . . . . Total Part Build Rating . | . . . . . . . . Parts Repaired . | . . . . . . . . Time . | . . . . . . . . Parts Recycled . | . . . . . . . . Recycled Matter . | . . . . . . . . Retrieved Matter . | . . . . . . . . Retrieved Components . | . . . . . . . . Parts Scanalyzed . | . . . . . . . . Part Schematics Acquired . | . . . . . . . . Parts Damaged . | . . . . . . . . Bothacking | -11 -10 -9 -9 -9 -8 -8 -8 ------------ Run | Yrd Mat Mat Min Exi Min Mat Sto Used RIF Installer . | . . . . . . . . Robots Hacked . | . . . . . . . . Non-combat . | . . . . . . . . Combat . | . . . . . . . . Robot Hacks Applied . | . . . . . . . . Relay Couplers Released . | . . . . . . . . Fabnet Peak Effective % . | . . . . . . . . Robots Rewired . | . . . . . . . . Allies Hacked . | . . . . . . . . Hacks Repelled . | . . . . . . . . Allies | -11 -10 -9 -9 -9 -8 -8 -8 -------- Run | Yrd Mat Mat Min Exi Min Mat Sto Total Allies . | . . . . . . . . Largest Group . | . . . . . . . . Highest-Rated Group . | . . . . . . . . Highest-Rated Ally . | . . . . . . . . Total Orders . | . . . . . . . . Ally Attacks . | . . . . . . . . Total Damage . | . . . . . . . . Kills . | . . . . . . . . Allies Corrupted . | . . . . . . . . Allies Melted . | . . . . . . . . Intel | -11 -10 -9 -9 -9 -8 -8 -8 ------- Run | Yrd Mat Mat Min Exi Min Mat Sto Robot Analysis Total . | . . . . . . . . Derelict Logs Recovered 2 | . . . 2 . . . . Drone Launches . | . . . . . . . . Drone Recoveries . | . . . . . . . . Exploration | -11 -10 -9 -9 -9 -8 -8 -8 ------------- Run | Yrd Mat Mat Min Exi Min Mat Sto Turns Passed 1588 | 65 139 426 254 353 47 34 270 Spaces Moved 976 | 45 94 178 143 293 26 29 168 Core 86 | 9 . . . . . . 77 Treads 20 | . . . . . . . 20 Legs 856 | 36 94 178 143 293 26 29 57 Wheels 14 | . . . . . . . 14 Hover . | . . . . . . . . Flight . | . . . . . . . . Fastest Speed 50 | 50 120 120 120 120 120 120 50 Average Speed 121 | 106 131 142 120 120 120 120 105 Slowest Speed 400 | 120 190 400 120 120 120 120 200 Overloaded Moves . | . . . . . . . . Propulsion Burnouts . | . . . . . . . . Robots Hopped . | . . . . . . . . Cave-ins Triggered . | . . . . . . . . Exploration Rate (%) 26 | 4 25 29 28 77 17 5 26 Regions Visited 7 Branch Regions 4 Pre-discovered Areas 1 | . . . . 1 . . . Known Exits Taken . | . . . . . . . . Unknown Exits Taken 7 | 1 1 1 1 1 1 1 . Scrap Searched 1 | . . . 1 . . . . Spaces Dug . | . . . . . . . . Terrain Destroyed 30 | . . 29 . . . . 1 Melee . | . . . . . . . . Projectile 1 | . . . . . . . 1 AOE 29 | . . 29 . . . . . Terrain Rammed . | . . . . . . . . Walls Destroyed . | . . . . . . . . Machines Disabled . | . . . . . . . . Actions | -11 -10 -9 -9 -9 -8 -8 -8 --------- Run | Yrd Mat Mat Min Exi Min Mat Sto Total 1200 | 62 102 274 180 294 35 28 225 Wait 29 | 1 . 27 1 . . . . Move 969 | 44 93 177 142 292 25 28 168 Hop . | . . . . . . . . Pick Up 37 | 11 2 8 5 . 2 . 9 Fast Attach 1 | . 1 . . . . . . Attach 33 | 6 1 8 4 . 2 . 12 Detach . | . . . . . . . . Swap 1 | . . 1 . . . . . Drop 10 | . 1 6 1 . 2 . . Fire 114 | . 4 46 26 . 4 . 34 Melee . | . . . . . . . . Ram 2 | . . . . . . . 2 Kick 2 | . . 1 1 . . . . Crush . | . . . . . . . . Escape Stasis . | . . . . . . . . Rewire 2 | . . . . 2 . . . Trap . | . . . . . . . . Miscellaneous . | . . . . . . . . Route ------- -11/Scrapyard -10/Materials -9/Materials -9/Mines -9/Exiles (discovered 2 exits: [*Min x2]) -8/Mines -8/Materials (discovered 2 exits: Fac / [*Sto]) -8/Storage History --------- Turn | Location | Event 14 | -11/Scrapyard | Discovered new exit (range 16) 66 | -11/Scrapyard | Entered Materials 162 | -10/Materials | Discovered new exit (range 10) 205 | -10/Materials | Entered another Materials area 205 | -9/Materials | Evolved 2 slots: Propulsion x1, Utility x1 302 | -9/Materials | Build established: Mutant 617 | -9/Materials | Discovered new exit (range 12) 631 | -9/Materials | Entered Mines 665 | -9/Mines | Core integrity fell below 50% 691 | -9/Mines | Lost 3 parts (1p2w) 848 | -9/Mines | Learned Materials stockpile data 879 | -9/Mines | Deemed a non-threat by the Exiles lab entrance 880 | -9/Mines | Discovered new exit (range 5) 885 | -9/Mines | Entered Exiles 903 | -9/Exiles | Discovered new exit (range 17) 917 | -9/Exiles | Met 8R-AWN 936 | -9/Exiles | Met EX-HEX 1012 | -9/Exiles | Met EX-DEC 1040 | -9/Exiles | Visited The Gauntlet 1088 | -9/Exiles | Build established: Scavenger-Mutant 1191 | -9/Exiles | Learned location of Zion (-7) 1228 | -9/Exiles | Discovered new exit (range 10) 1238 | -9/Exiles | Entered Mines 1279 | -8/Mines | Discovered new exit (range 7) 1285 | -8/Mines | Entered Materials 1285 | -8/Materials | Evolved 2 slots: Power x1, Utility x1 1285 | -8/Materials | Discovered new exit (range 8) 1286 | -8/Materials | Identified exit to Factory 1319 | -8/Materials | Entered Storage 1478 | -8/Storage | Lost 4 parts (3n1w) 1522 | -8/Storage | Core integrity fell below 50% 1538 | -8/Storage | Lost 5 parts (1p3u1w) 1566 | -8/Storage | Core integrity fell below 20% 1589 | -8/Storage | Destroyed by H-55 Commando with Gauss Rifle Last Messages --------------- K-01 Serf collects debris. Acquired Assault Cannon. Recoil Stabilizer destroyed. Slug penetrates Wall. G-47 Trooper knocked back. K-01 Serf collects debris. G-47 Trooper destroyed. Slug penetrates Wall. K-01 Serf collects debris. Slug penetrates Wall. K-01 Serf destroyed. Slug penetrates Wall. Wall collapses. Penetrated by Slug. Critical hit (Burn: +37). Assault Cannon destroyed. U-05 Engineer builds a Wall. Acquired 27 matter. Acquired 11 matter. Penetrated by Slug. Map ----- +----------------------------------------------------+ | | | | | | | | | | | | | ?????????????????????????????????????##########??? | | ?????????????????????????????????????# #??? | | ??????????????????????#????????????### #??? | | ???################################### """"" #??? | | ?###"T"######################### # "???" #??? | | ?# # ""??" #??? | | ?# "??"" #??? | | ?# # "???" #??? | | ######### ########+######g#### # """"" #??? | | # # ## % % ### ### #??? | | # # """" ## % % u### #####/######??? | | """" # # "??" ##r [r /% #???????? | | """" # # "??" ## h###+#### #???????? | | """" + + "??" ## ; ?# #???????? | | """" # # "??" ## # + ??????? | | # # """" ## # """## ?????? | | # # ## # """## #????? | | % # ############ ! # """## #????? | | ###"T"### #????#######! = # ## #????? | | ??#"""#?# #??????????# @ ########? #????? | | ??#####?# #??????????#########???????? +????? | | ????????# #??????????????????????????? #????? | | ????????# #??????????????????????????? #????? | | ????????# #??????????????????????????? #????? | | ????????# #??????????????????????????? #????? | | ????????# #??????????????????????????? ?????? | | ????????# #???????????????????????????? ???????? | | ????????# #????????????????????????????????????? | | ????????# #????????????????????????????????????? | | ????????# #????????????????????????????????????? | | ????????# #????????????????????????????????????? | | ????????# #????????????????????????????????????? | | ????????# #????????????????????????????????????? | | ????????# ?????????????????????????????????????? | | ????????# ?????????????????????????????????????? | | ????????? ?????????????????????????????????????? | | ????????? ?????????????????????????????????????? | | ?????????????????????????????????????????????????? | | ?????????????????????????????????????????????????? | | ?????????????????????????????????????????????????? | | ?????????????????????????????????????????????????? | | ?????????????????????????????????????????????????? | | ?????????????????????????????????????????????????? | | ?????????????????????????????????????????????????? | +----------------------------------------------------+ Best States ------------- Heat Dissipation 41 Energy Generation 10 Energy Capacity 250 Matter Stores 300 Matter Capacity 300 Sight Range 18 Terrain Scan Range 14 Terrain Scan Density 10 Armor Coverage 150 Evasion (%) 55 Targeting Accuracy 6 Recoil Reduction 5 Item Schematics ----------------- None Robot Schematics ------------------ None Fabricated ------------ Nothing Alien Tech Used ----------------- None Achievements -------------- Librarian Challenges ------------ None Game ------ Seed GravityWaveMinigun Manual? 0 Play Time 00:29:26 Cumulative 2.4 hours Start 2024.12.09 @ 17:01:49 End 2024.12.09 @ 17:35:27 Sessions 1 Manual Loads 0 Difficulty Rogue Special Mode None Game No. 6 Rogue 6 Adventurer 0 Explorer 0 Win Type - Total 0 Types 0/0/0/0/0/0/0/0/0 Lore% 4 Gallery% 5 Achievement% 6 Wizard Run 0 Options --------- Layout 1 ASCII 1 Keyboard 0 Movement Mouse Keybinds 0 Fullscreen 1 Font 24/Smallcaps Map View 50x35 Zoom Use 0% Tactical HUD 0 Map Filters NONE Filters NONE Steam 1 RUN: 77b9c792-aaec-4e92-9ff7-ca00f781cd00